bitfinex-derivatives/quotes_BTCF0:USTF0_20250528
["timestamp","ask_amount","ask_price","bid_price","bid_amount"]
[1748457632713,2.27178172,107600.0,107590.0,0.00626197]
[1748457634509,2.3872948,107600.0,107590.0,0.00626197]
[1748457634710,2.2427482,107600.0,107590.0,0.00626197]
[1748457637308,0.1858785,107570.0,107560.0,0.00139449]
[1748457637505,0.9721985,107570.0,107560.0,0.4137931]
[1748457637809,1.0356985,107570.0,107560.0,1.91379454]
[1748457638315,1.0356985,107570.0,107560.0,1.72801874]
[1748457638502,1.09344565,107570.0,107560.0,1.91391444]
[1748457638703,1.09344565,107570.0,107560.0,1.94824782]
[1748457638704,1.12604565,107570.0,107560.0,1.94824782]
[1748457638910,1.0682985,107570.0,107560.0,1.93551019]
[1748457639213,1.0682985,107570.0,107560.0,1.94824913]
[1748457639509,0.6415385,107570.0,107560.0,1.94824913]
[1748457639722,1.0682985,107570.0,107560.0,1.94824913]
[1748457640105,1.05923221,107570.0,107560.0,1.94823017]
[1748457640516,1.05923221,107570.0,107560.0,1.93551019]
[1748457643211,1.47777936,107570.0,107560.0,1.93551019]
[1748457643419,1.47777936,107570.0,107560.0,1.94821979]
[1748457644011,1.47777936,107570.0,107560.0,1.94823057]
[1748457644419,1.47777936,107570.0,107560.0,1.93551019]
[1748457647820,1.11697936,107570.0,107560.0,1.93551019]
[1748457648012,1.30989889,107570.0,107560.0,2.12842972]
[1748457649510,1.30989889,107570.0,107560.0,2.13294527]
[1748457652623,1.39651961,107570.0,107560.0,2.13294527]
[1748457652819,1.11652637,107570.0,107560.0,2.3258648]
[1748457653017,0.60318565,107570.0,107560.0,2.3258648]
[1748457653227,1.02990565,107570.0,107560.0,2.3258648]
[1748457653420,1.11652637,107570.0,107560.0,2.3258648]
[1748457653623,1.14652637,107570.0,107560.0,2.3258648]
[1748457654220,1.3394459,107570.0,107560.0,2.3258648]
[1748457654521,1.28169875,107570.0,107560.0,2.23561607]
[1748457654720,1.28169875,107570.0,107560.0,2.17640518]
[1748457655522,1.28169875,107570.0,107560.0,2.17651088]
[1748457656127,0.85497875,107570.0,107560.0,2.17651088]
[1748457656319,1.28169875,107570.0,107560.0,2.17651088]
[1748457656818,1.28169875,107570.0,107560.0,2.36943041]
[1748457657013,1.06582025,107570.0,107560.0,2.4286413]
[1748457657326,0.87290072,107570.0,107560.0,2.3258648]
[1748457657520,1.09157902,107570.0,107560.0,2.3258648]
[1748457657713,1.28449855,107570.0,107560.0,2.17651088]
[1748457659919,1.09157902,107570.0,107560.0,2.36943367]
[1748457660120,1.09157902,107570.0,107560.0,2.17651414]
[1748457660719,0.56529902,107570.0,107560.0,2.17651414]
[1748457661023,1.09149902,107570.0,107560.0,2.17651414]
[1748457661626,0.56529902,107570.0,107560.0,2.17651414]
[1748457661826,1.09149902,107570.0,107560.0,2.17651414]
[1748457662627,1.09149902,107570.0,107560.0,2.23576673]
[1748457662822,1.28441855,107570.0,107560.0,2.23576673]
[1748457663028,1.64521855,107570.0,107560.0,2.19219786]
[1748457663236,1.70951855,107570.0,107560.0,2.19219786]
[1748457663524,1.34871855,107570.0,107560.0,2.19219786]
[1748457663723,1.46423163,107570.0,107560.0,2.19220583]
[1748457663913,1.34871855,107570.0,107560.0,2.19220583]
[1748457664114,1.46423163,107570.0,107560.0,2.13294527]
[1748457664716,1.82503163,107570.0,107560.0,2.1922077]
[1748457664924,1.72934438,107570.0,107560.0,2.20497098]
[1748457665232,1.72934438,107570.0,107560.0,2.20497167]
[1748457665527,1.33993992,107570.0,107560.0,2.1922077]
[1748457666731,1.455453,107570.0,107560.0,2.13294527]
[1748457666932,1.455453,107570.0,107560.0,2.19221149]
[1748457667131,1.455453,107570.0,107560.0,2.13294527]
[1748457667631,1.455453,107570.0,107560.0,2.1922139]
[1748457668027,1.816253,107570.0,107560.0,2.1920939]
[1748457668228,1.72934438,107570.0,107560.0,2.1920939]
[1748457668432,1.72934438,107570.0,107560.0,1.65791004]
[1748457668627,1.77934438,107570.0,107560.0,1.85667386]
[1748457668935,1.77934438,107570.0,107560.0,1.88899386]
[1748457669435,1.77934438,107570.0,107560.0,1.87612584]
[1748457669731,1.77934438,107570.0,107560.0,1.88898747]
[1748457670132,1.77934438,107570.0,107560.0,1.88759298]
[1748457670432,1.77934438,107570.0,107560.0,1.88757711]
[1748457670631,1.77934438,107570.0,107560.0,1.88755765]
[1748457670821,1.15974485,107570.0,107560.0,2.08047718]
[1748457671131,1.15974485,107570.0,107560.0,2.33728197]
[1748457671132,1.19458505,107570.0,107560.0,2.33728197]
[1748457671323,1.19458505,107570.0,107560.0,2.13155088]
[1748457671924,0.95870655,107570.0,107560.0,2.13155088]
[1748457672229,0.80989347,107570.0,107560.0,2.32447041]
[1748457672536,1.11128505,107570.0,107560.0,2.32447041]
[1748457672717,1.11128505,107570.0,107560.0,2.38373904]
[1748457672718,1.08260604,107570.0,107560.0,2.38373904]
[1748457673423,1.30602557,107570.0,107560.0,2.19081951]
[1748457674030,1.11310604,107570.0,107560.0,1.99789998]
[1748457674424,1.11310604,107570.0,107560.0,1.93863135]
[1748457678943,1.11310604,107570.0,107560.0,1.99789998]
[1748457679129,0.68646604,107570.0,107560.0,1.99789998]
[1748457679331,1.11310604,107570.0,107560.0,1.99789998]
[1748457679526,1.11310604,107570.0,107560.0,1.93863135]
[1748457682441,0.68646604,107570.0,107560.0,1.93863135]
[1748457682742,1.11306604,107570.0,107560.0,1.93863135]
[1748457682940,1.11306604,107570.0,107560.0,2.29943135]
[1748457683939,0.68646604,107570.0,107560.0,2.29943135]
[1748457684140,1.11306604,107570.0,107560.0,2.29943135]
[1748457684542,1.08256604,107570.0,107560.0,1.93863135]
[1748457684743,1.08256604,107570.0,107560.0,2.29943135]
[1748457685242,1.08256604,107570.0,107560.0,1.93863135]
[1748457685937,1.11576604,107570.0,107560.0,1.93863135]
[1748457686641,1.11576604,107570.0,107560.0,1.94141135]
[1748457687440,1.11576604,107570.0,107560.0,2.00067998]
[1748457689945,1.11576604,107570.0,107560.0,2.36147998]
[1748457690947,1.11576604,107570.0,107560.0,2.00067998]
[1748457692047,0.58964604,107570.0,107560.0,2.00067998]
[1748457692248,0.18471024,107570.0,107560.0,1.05441982]
[1748457692446,0.61127024,107570.0,107560.0,1.09790861]
[1748457692649,0.61127024,107570.0,107560.0,2.59790811]
[1748457693346,0.18471024,107570.0,107560.0,2.59790811]
[1748457693547,0.05787617,107570.0,107560.0,2.59790811]
[1748457693746,0.49443617,107570.0,107560.0,2.59790811]
[1748457693949,0.49443617,107570.0,107560.0,2.84873848]
[1748457694249,0.43656,107570.0,107560.0,2.84873848]
[1748457694942,0.42656,107570.0,107560.0,2.84871718]
[1748457695252,0.27618976,107580.0,107570.0,0.1858785]
[1748457695454,1.20857096,107580.0,107570.0,1.08495496]
[1748457696351,1.21057096,107580.0,107570.0,1.08595496]
[1748457698255,1.21057096,107580.0,107570.0,2.58595496]
[1748457699759,1.02470976,107580.0,107570.0,2.58595496]
[1748457700257,0.37818976,107580.0,107570.0,2.58595496]
[1748457700460,0.80466976,107580.0,107570.0,2.58595496]
[1748457702263,0.80466976,107580.0,107570.0,2.85804451]
[1748457702264,0.06001569,107580.0,107570.0,2.85804451]
[1748457702452,1e-07,107580.0,107570.0,3.04432415]
[1748457702650,1e-07,107580.0,107570.0,3.73269566]
[1748457702846,1e-07,107580.0,107570.0,3.55829148]
[1748457703153,1e-07,107580.0,107570.0,2.3221811]
[1748457703353,1e-07,107580.0,107570.0,2.12930464]
[1748457703553,1e-07,107580.0,107570.0,2.05829148]
[1748457703749,0.00153445,107590.0,107580.0,0.1858612]
[1748457703750,5e-08,107590.0,107580.0,0.1858612]
[1748457703950,5e-08,107590.0,107580.0,2.5548324]
[1748457704150,5e-08,107590.0,107580.0,2.57676724]
[1748457704662,5e-08,107590.0,107580.0,2.64764733]
[1748457704849,5e-08,107590.0,107580.0,2.57676724]
[1748457705360,0.00200005,107590.0,107580.0,2.64761547]
[1748457705550,0.00200005,107590.0,107580.0,2.69102613]
[1748457705958,0.00200005,107590.0,107580.0,2.49794471]
[1748457706357,0.00200005,107590.0,107580.0,2.45260151]
[1748457706655,0.00200005,107590.0,107580.0,2.36610145]
[1748457707051,0.00100005,107590.0,107580.0,2.36610145]
[1748457707259,0.00100005,107590.0,107580.0,2.36710145]
[1748457708066,0.00100005,107590.0,107580.0,2.36707197]
[1748457708266,0.00100005,107590.0,107580.0,1.94063197]
[1748457709164,0.00100005,107590.0,107580.0,3.44063197]
[1748457709971,0.00100005,107590.0,107580.0,3.38268657]
[1748457710668,0.00100005,107590.0,107580.0,3.38720212]
[1748457712272,0.00100005,107590.0,107580.0,3.37531459]
[1748457712972,0.00100005,107590.0,107580.0,3.73611459]
[1748457714881,0.00100005,107590.0,107580.0,3.79405999]
[1748457715283,0.00100005,107590.0,107580.0,3.73611459]
[1748457716983,0.00100005,107590.0,107580.0,3.73608442]
[1748457717571,0.00100005,107590.0,107580.0,3.79402982]
[1748457718576,5e-08,107590.0,107580.0,3.79402982]
[1748457718979,5e-08,107590.0,107580.0,3.73506912]
[1748457719180,5e-08,107590.0,107580.0,3.73784912]
[1748457719481,5e-08,107590.0,107580.0,3.73519015]
[1748457719680,5e-08,107590.0,107580.0,4.15958952]
[1748457719873,5e-08,107590.0,107580.0,4.23043775]
[1748457720384,5e-08,107590.0,107580.0,4.26223775]
[1748457720585,5e-08,107590.0,107580.0,4.16928975]
[1748457720785,0.03130005,107590.0,107580.0,4.16928975]
[1748457721279,0.03130005,107590.0,107580.0,3.74304975]
[1748457722678,0.03130005,107590.0,107580.0,3.62883456]
[1748457723476,0.03130005,107590.0,107580.0,3.43606058]
[1748457723888,0.03130005,107590.0,107580.0,3.62883456]
[1748457724781,0.03130005,107590.0,107580.0,3.04883456]
[1748457724984,0.03130005,107590.0,107580.0,3.64883456]
[1748457727082,0.03130005,107590.0,107580.0,3.73533462]
[1748457727991,0.03130005,107590.0,107580.0,3.13542406]
[1748457728194,0.03130005,107590.0,107580.0,3.79542406]
[1748457728492,0.03130005,107590.0,107580.0,3.79541319]
[1748457728688,0.06333952,107600.0,107590.0,0.185844]
[1748457728890,0.00013952,107600.0,107590.0,1.20274526]
[1748457729095,0.00013952,107600.0,107590.0,1.23424526]
[1748457729294,0.00013952,107600.0,107590.0,2.73424526]
[1748457729491,0.00013952,107600.0,107590.0,2.80509289]
[1748457730094,0.00013952,107600.0,107590.0,2.99424466]
[1748457730297,0.03063952,107600.0,107590.0,3.06509289]
[1748457730493,0.03263952,107600.0,107590.0,3.06509289]
[1748457731393,0.03263952,107600.0,107590.0,3.02164382]
[1748457731599,0.03263952,107600.0,107590.0,3.15354977]
[1748457731998,0.06483952,107600.0,107590.0,3.15354977]
[1748457732497,0.06483952,107600.0,107590.0,3.08270154]
[1748457733389,0.09583952,107600.0,107590.0,3.02476865]
[1748457734396,0.05011502,107600.0,107590.0,3.02476865]
[1748457734696,0.05791468,107610.0,107600.0,0.1858266]
[1748457734901,0.031,107610.0,107600.0,1.44730124]
[1748457735394,0.031,107610.0,107600.0,2.94730124]
[1748457735595,0.031,107610.0,107600.0,2.85980118]
[1748457735999,0.031,107610.0,107600.0,2.62980118]
[1748457736994,0.033,107610.0,107600.0,2.62980118]
[1748457737596,0.0964,107610.0,107600.0,2.62980118]
[1748457738202,0.0964,107610.0,107600.0,2.6889967]
[1748457739305,0.0964,107610.0,107600.0,2.73251946]
[1748457740105,0.0964,107610.0,107600.0,2.73251849]
[1748457741807,0.0964,107610.0,107600.0,2.78979972]
[1748457741993,0.0964,107610.0,107600.0,2.74439399]
[1748457742606,0.15431468,107610.0,107600.0,2.74439399]
[1748457743602,0.15431468,107610.0,107600.0,2.77489399]
[1748457743902,0.15431468,107610.0,107600.0,2.96771269]
[1748457744505,0.15431468,107610.0,107600.0,2.77489399]
[1748457744811,0.15431468,107610.0,107600.0,2.70382297]
[1748457745608,0.0964,107610.0,107600.0,2.77489399]
[1748457746006,0.0964,107610.0,107600.0,2.96771269]
[1748457746207,0.15431468,107610.0,107600.0,2.89664167]
[1748457746601,0.15431468,107610.0,107600.0,2.96771269]
[1748457747002,0.15431468,107610.0,107600.0,2.77489399]
[1748457747700,0.55294278,107610.0,107600.0,2.62623811]
[1748457747907,0.36713338,107610.0,107600.0,2.62635626]
[1748457748101,0.36713338,107610.0,107600.0,2.55528524]
[1748457748418,0.34431468,107610.0,107600.0,2.55528524]
[1748457749511,0.34431468,107610.0,107600.0,2.62635626]
[1748457750014,0.34431468,107610.0,107600.0,2.55528524]
[1748457750213,0.34431468,107610.0,107600.0,2.58568524]
[1748457750508,0.34431468,107610.0,107600.0,2.59568524]
[1748457750715,0.34431468,107610.0,107600.0,2.66675626]
[1748457751512,0.34431468,107610.0,107600.0,2.66953626]
[1748457752112,0.34431468,107610.0,107600.0,2.59846524]
[1748457752309,0.34431468,107610.0,107600.0,2.5984701]
[1748457752704,0.34431468,107610.0,107600.0,2.65652598]
[1748457752909,0.34431468,107610.0,107600.0,2.727597]
[1748457754814,0.77031468,107610.0,107600.0,2.727597]
[1748457755513,0.77031468,107610.0,107600.0,2.77301482]
[1748457756717,0.77031468,107610.0,107600.0,2.72760602]
[1748457757211,0.77031468,107610.0,107600.0,2.75790602]
[1748457757412,0.77031468,107610.0,107600.0,2.80332628]
[1748457758116,0.58031468,107610.0,107600.0,2.75790602]
[1748457760218,0.15431468,107610.0,107600.0,2.75790602]
[1748457760516,0.48591468,107610.0,107600.0,2.93790602]
[1748457760712,0.48591468,107610.0,107600.0,3.13072472]
[1748457761116,0.48591468,107610.0,107600.0,3.0871909]
[1748457761316,0.48591468,107610.0,107600.0,3.17369096]
[1748457762922,0.42796,107610.0,107600.0,3.17369096]
[1748457763820,0.002,107610.0,107600.0,3.27289096]
[1748457764221,0.05991468,107610.0,107600.0,3.27289096]
[1748457765210,0.05991468,107610.0,107600.0,3.3183216]
[1748457765516,0.002,107610.0,107600.0,3.32283722]
[1748457766524,0.002,107610.0,107600.0,3.27740651]
[1748457767412,0.002,107610.0,107600.0,3.32283403]
[1748457768116,0.002,107610.0,107600.0,3.25176301]
[1748457768316,0.002,107610.0,107600.0,3.32281893]
[1748457768723,0.002,107610.0,107600.0,3.25176301]
[1748457768924,0.002,107610.0,107600.0,3.51563336]
[1748457769426,0.002,107610.0,107600.0,3.44458171]
[1748457769726,0.002,107610.0,107600.0,3.51562897]
[1748457769921,0.002,107610.0,107600.0,3.51561987]
[1748457770119,0.002,107610.0,107600.0,3.44457261]
[1748457770318,0.002,107610.0,107600.0,3.32280079]
[1748457771122,0.002,107610.0,107600.0,3.25175391]
[1748457771328,0.002,107610.0,107600.0,3.19369803]
[1748457771628,0.002,107610.0,107600.0,3.3227763]
[1748457772822,0.002,107610.0,107600.0,3.26473751]
[1748457773023,0.002,107610.0,107600.0,3.19369803]
[1748457773823,0.1205542,107620.0,107610.0,0.1858092]
[1748457774021,0.4839742,107620.0,107610.0,1.33072945]
[1748457774220,0.4839742,107620.0,107610.0,1.28531103]
[1748457774420,0.4839742,107620.0,107610.0,2.78531103]
[1748457774826,0.4859742,107620.0,107610.0,2.78531103]
[1748457775622,0.4879742,107620.0,107610.0,2.78531103]
[1748457775822,0.4879742,107620.0,107610.0,2.78809103]
[1748457776829,0.0620542,107620.0,107610.0,2.71706152]
[1748457777038,0.0620542,107620.0,107610.0,2.91998895]
[1748457777039,0.00413952,107620.0,107610.0,2.91998895]
[1748457777425,0.00413952,107620.0,107610.0,3.08998895]
[1748457778123,0.00213952,107620.0,107610.0,3.04459109]
[1748457778628,0.00013952,107620.0,107610.0,2.95809103]
[1748457778829,0.00013952,107620.0,107610.0,3.00106811]
[1748457780440,0.00013952,107620.0,107610.0,2.80824941]
[1748457780640,0.00013952,107620.0,107610.0,2.7652479]
[1748457780842,0.00013952,107620.0,107610.0,3.1508853]
[1748457780843,2e-08,107620.0,107610.0,3.1508853]
[1748457781135,2e-08,107620.0,107610.0,3.11020373]
[1748457781533,2e-08,107620.0,107610.0,3.13926752]
[1748457782440,2e-08,107620.0,107610.0,3.33208622]
[1748457782636,2e-08,107620.0,107610.0,3.42501021]
[1748457782830,0.15711468,107650.0,107640.0,0.1857575]
[1748457783033,0.15711468,107650.0,107640.0,1.57129801]
[1748457783034,0.51655468,107650.0,107640.0,1.57129801]
[1748457783233,0.09071468,107650.0,107640.0,1.66479801]
[1748457783430,0.09071468,107650.0,107640.0,3.16479801]
[1748457783741,0.20818827,107660.0,107650.0,0.1857402]
[1748457783938,0.7599942,107660.0,107650.0,1.47387608]
[1748457784838,0.7599942,107660.0,107650.0,1.47087608]
[1748457784839,0.70407952,107660.0,107650.0,1.47087608]
[1748457785236,0.70607952,107660.0,107650.0,1.47087608]
[1748457785642,0.70607952,107660.0,107650.0,1.41180138]
[1748457786543,0.70607952,107660.0,107650.0,1.47087608]
[1748457786731,0.70607952,107660.0,107650.0,1.41180138]
[1748457789729,0.70599952,107660.0,107650.0,1.41180138]
[1748457792145,0.70599952,107660.0,107650.0,1.13180138]
[1748457792537,0.28023952,107660.0,107650.0,1.13180138]
[1748457792736,0.70595952,107660.0,107650.0,1.13180138]
[1748457795252,0.70591952,107660.0,107650.0,1.13180138]
[1748457795645,0.10023952,107660.0,107650.0,1.36180138]
[1748457795950,0.52591952,107660.0,107650.0,1.36180138]
[1748457796147,0.49351952,107660.0,107650.0,1.36180138]
[1748457796944,0.49351952,107660.0,107650.0,2.86180138]
[1748457797145,0.06783952,107660.0,107650.0,2.86180138]
[1748457797454,0.49351952,107660.0,107650.0,2.86180138]
[1748457797748,0.06783952,107660.0,107650.0,2.86180138]
[1748457797954,0.00413952,107660.0,107650.0,2.86180138]
[1748457798342,0.00413952,107660.0,107650.0,2.92087608]
[1748457798542,0.00413952,107660.0,107650.0,2.86180138]
[1748457800248,0.00413952,107660.0,107650.0,3.28748138]
[1748457801145,0.00413952,107660.0,107650.0,2.86180138]
[1748457801751,0.00413952,107660.0,107650.0,3.22538138]
[1748457802838,0.00413952,107660.0,107650.0,3.3277832]
[1748457803239,0.00413952,107660.0,107650.0,3.28445608]
[1748457804557,0.00413952,107660.0,107650.0,3.3277832]
[1748457804955,0.00413952,107660.0,107650.0,3.32780603]
[1748457805744,0.00413952,107660.0,107650.0,3.35910603]
[1748457805944,0.00413952,107660.0,107650.0,3.55163279]
[1748457807346,0.00413952,107660.0,107650.0,3.49255809]
[1748457807552,0.00413952,107660.0,107650.0,3.56348183]
[1748457807751,0.00413952,107660.0,107650.0,3.49255809]
[1748457807958,0.00413952,107660.0,107650.0,3.56348183]
[1748457808343,0.00413952,107660.0,107650.0,3.80207775]
[1748457808344,2e-08,107660.0,107650.0,3.80207775]
[1748457808546,2e-08,107660.0,107650.0,3.6997222]
[1748457808753,2e-08,107660.0,107650.0,3.55055083]
[1748457809157,2e-08,107660.0,107650.0,3.55055136]
[1748457809456,2e-08,107660.0,107650.0,3.59406872]
[1748457810554,2e-08,107660.0,107650.0,3.70840846]
[1748457810857,2e-08,107660.0,107650.0,3.71028046]
[1748457811658,2e-08,107660.0,107650.0,3.63935672]
[1748457811870,2e-08,107660.0,107650.0,3.59406872]
[1748457812162,0.05930839,107690.0,107680.0,0.1856886]
[1748457812350,0.06319371,107690.0,107680.0,2.12844102]
[1748457812550,0.06319371,107690.0,107680.0,2.22152927]
[1748457812751,0.00139371,107690.0,107680.0,3.77945318]
[1748457812956,0.00139371,107690.0,107680.0,3.85036525]
[1748457813154,0.10009298,107700.0,107690.0,0.1856713]
[1748457813453,0.1458658,107720.0,107710.0,0.1856368]
[1748457813661,0.6628854,107720.0,107710.0,1.35987487]
[1748457813852,0.29070797,107720.0,107710.0,1.05987487]
[1748457814057,0.29070797,107720.0,107710.0,1.06034088]
[1748457814457,0.29070797,107720.0,107710.0,1.09214088]
[1748457814961,0.32110797,107720.0,107710.0,1.12234088]
[1748457815161,0.32610797,107720.0,107710.0,1.12234088]
[1748457815361,0.69371329,107720.0,107710.0,1.12234088]
[1748457815562,0.69371329,107720.0,107710.0,1.12512088]
[1748457816164,0.26819329,107720.0,107710.0,1.12512088]
[1748457816359,0.23819329,107720.0,107710.0,1.42512088]
[1748457816668,0.06319329,107720.0,107710.0,1.42512088]
[1748457816857,0.03279329,107720.0,107710.0,1.42512088]
[1748457817062,0.03279329,107720.0,107710.0,1.42698091]
[1748457817564,0.03279329,107720.0,107710.0,1.52598091]
[1748457818359,0.03279329,107720.0,107710.0,3.02598091]
[1748457819164,0.06289329,107720.0,107710.0,3.02598091]
[1748457824176,0.0318,107730.0,107720.0,0.1856197]
[1748457824363,0.0625,107730.0,107720.0,1.42473553]
[1748457824666,0.0625,107730.0,107720.0,1.42622378]
[1748457824875,0.0625,107730.0,107720.0,2.92622378]
[1748457825765,0.0635,107730.0,107720.0,2.92622378]
[1748457825968,0.0655,107730.0,107720.0,2.92622378]
[1748457830176,0.0655,107730.0,107720.0,3.02518378]
[1748457830377,0.0655,107730.0,107720.0,2.75518378]
[1748457832380,0.0655,107730.0,107720.0,2.46380795]
[1748457832585,0.0655,107730.0,107720.0,1.96710795]
[1748457832586,0.5311025,107730.0,107720.0,1.96710795]
[1748457832878,0.3455,107730.0,107720.0,2.52044378]
[1748457833074,0.3455,107730.0,107720.0,2.68194378]
[1748457833275,0.3455,107730.0,107720.0,2.64952795]
[1748457833583,0.3455,107730.0,107720.0,2.84194378]
[1748457834379,0.3455,107730.0,107720.0,2.87244378]
[1748457836481,0.77074,107730.0,107720.0,2.90384378]
[1748457836684,0.49074,107730.0,107720.0,2.90384378]
[1748457836887,0.56074,107730.0,107720.0,2.90384378]
[1748457837775,0.56074,107730.0,107720.0,2.67384378]
[1748457837976,0.56074,107730.0,107720.0,2.95384378]
[1748457839384,0.56074,107730.0,107720.0,2.76142795]
[1748457839689,0.56074,107730.0,107720.0,2.95384378]
[1748457840379,0.56074,107730.0,107720.0,2.95662378]
[1748457841681,0.56074,107730.0,107720.0,3.058881]
[1748457842492,0.49074,107730.0,107720.0,3.058881]
[1748457842689,0.54865468,107730.0,107720.0,3.058881]
[1748457843683,0.54865468,107730.0,107720.0,3.05913677]
[1748457845695,0.54865468,107730.0,107720.0,2.86324485]
[1748457845883,0.54865468,107730.0,107720.0,2.74566068]
[1748457846084,0.54865468,107730.0,107720.0,3.07566068]
[1748457847191,0.55865468,107730.0,107720.0,3.07566068]
[1748457848488,0.54865468,107730.0,107720.0,3.07566068]
[1748457849396,0.54865468,107730.0,107720.0,2.74566068]
[1748457849595,0.54865468,107730.0,107720.0,2.87566068]
[1748457850089,0.63521251,107730.0,107720.0,2.87752071]
[1748457850988,0.65521251,107730.0,107720.0,2.87752071]
[1748457852296,0.65513251,107730.0,107720.0,2.87752071]
[1748457852496,0.65513251,107730.0,107720.0,2.87756946]
[1748457853097,0.63513251,107730.0,107720.0,2.87756946]
[1748457853594,0.63513251,107730.0,107720.0,2.88941512]
[1748457853984,0.63513251,107730.0,107720.0,2.69699929]
[1748457854184,0.63513251,107730.0,107720.0,2.88941512]
[1748457855801,0.66643251,107730.0,107720.0,2.91991512]
[1748457856502,0.69643251,107730.0,107720.0,2.91991512]
[1748457856903,0.66643251,107730.0,107720.0,2.91993131]
[1748457857594,0.66639251,107730.0,107720.0,2.91993131]
[1748457860396,0.66639251,107730.0,107720.0,2.91993178]
[1748457861507,0.66639251,107730.0,107720.0,2.91993158]
[1748457862703,0.66639251,107730.0,107720.0,2.96499258]
[1748457862910,0.66639251,107730.0,107720.0,2.96487258]
[1748457865404,0.70639251,107730.0,107720.0,2.96487258]
[1748457865606,0.71639251,107730.0,107720.0,2.96487258]
[1748457865912,0.71639251,107730.0,107720.0,2.9648743]
[1748457869207,0.71639251,107730.0,107720.0,2.8348743]
[1748457870003,0.71635251,107730.0,107720.0,2.8348743]
[1748457870413,0.71635251,107730.0,107720.0,2.78981519]
[1748457873603,0.71635251,107730.0,107720.0,2.59739936]
[1748457873819,0.71635251,107730.0,107720.0,2.78981519]
[1748457875513,0.71635251,107730.0,107720.0,2.83488105]
[1748457876807,0.29127251,107730.0,107720.0,2.83488105]
[1748457877015,0.29127251,107730.0,107720.0,2.85085484]
[1748457877016,0.71631251,107730.0,107720.0,2.85085484]
[1748457878221,0.71631251,107730.0,107720.0,3.04315039]
[1748457878721,0.68451251,107730.0,107720.0,3.04315039]
[1748457879226,0.68451251,107730.0,107720.0,3.04313877]
[1748457881520,0.68451251,107730.0,107720.0,3.11414512]
[1748457881920,0.68451251,107730.0,107720.0,3.04313877]
[1748457882120,0.68451251,107730.0,107720.0,2.95625291]
[1748457882721,0.68451251,107730.0,107720.0,3.02725799]
[1748457883621,0.68447251,107730.0,107720.0,3.02725799]
[1748457883807,0.68447251,107730.0,107720.0,3.02725137]
[1748457888016,0.68447251,107730.0,107720.0,3.11413723]
[1748457888219,0.68447251,107730.0,107720.0,3.02723857]
[1748457888429,0.59791468,107730.0,107720.0,3.11412443]
[1748457888613,0.59791468,107730.0,107720.0,3.04311935]
[1748457888814,0.68447251,107730.0,107720.0,2.64251485]
[1748457889008,0.68447251,107730.0,107720.0,3.02722623]
[1748457891222,0.25947251,107730.0,107720.0,3.02722623]
[1748457891525,0.08655783,107740.0,107730.0,0.1856023]
[1748457891826,0.08655783,107740.0,107730.0,1.64086248]
[1748457892119,0.42496,107740.0,107730.0,3.1858985]
[1748457892324,0.42496,107740.0,107730.0,3.08551501]
[1748457892713,0.16669782,107750.0,107730.0,2.89991271]
[1748457892922,0.39669782,107750.0,107740.0,1.13028186]
[1748457893225,0.82165782,107750.0,107740.0,1.35115786]
[1748457893424,0.82165782,107750.0,107740.0,1.34915786]
[1748457893724,0.82165782,107750.0,107740.0,1.35193786]
[1748457893914,0.82165782,107750.0,107740.0,0.96522648]
[1748457894109,0.85575782,107750.0,107740.0,1.11410904]
[1748457894524,0.85875782,107750.0,107740.0,1.15758217]
[1748457894911,0.85875782,107750.0,107740.0,1.34993786]
[1748457895118,0.85875782,107750.0,107740.0,1.30646473]
[1748457895514,0.85675782,107750.0,107740.0,1.30646473]
[1748457896438,0.62861782,107750.0,107740.0,1.49882042]
[1748457896621,0.62861782,107750.0,107740.0,1.30646473]
[1748457897630,0.62861782,107750.0,107740.0,2.90896948]
[1748457898028,0.65861782,107750.0,107740.0,2.90896948]
[1748457898223,0.65861782,107750.0,107740.0,2.86553177]
[1748457898224,0.57205999,107750.0,107740.0,2.86553177]
[1748457899135,0.63795999,107750.0,107740.0,2.86553177]
[1748457900032,0.63795999,107750.0,107740.0,2.67310948]
[1748457900536,0.60795999,107750.0,107740.0,2.67310948]
[1748457901542,0.57481999,107750.0,107740.0,2.67310948]
[1748457903154,0.60631999,107750.0,107740.0,2.67310948]
[1748457905054,0.60531999,107750.0,107740.0,2.67410948]
[1748457905645,0.60431999,107750.0,107740.0,2.67510948]
[1748457912453,0.63711999,107750.0,107740.0,2.67510948]
[1748457914152,0.63711999,107750.0,107740.0,2.61604244]
[1748457915061,0.66711999,107750.0,107740.0,2.61604244]
[1748457916158,0.75367782,107750.0,107740.0,2.61790247]
[1748457917153,0.75367782,107750.0,107740.0,2.66131552]
[1748457918262,0.75367782,107750.0,107740.0,2.73229518]
[1748457918653,0.75367782,107750.0,107740.0,2.66131552]
[1748457918854,0.75367782,107750.0,107740.0,2.73229518]
[1748457919053,0.75367782,107750.0,107740.0,2.68888213]
[1748457919363,0.75367782,107750.0,107740.0,2.73232517]
[1748457919962,0.75367782,107750.0,107740.0,2.73232962]
[1748457920555,0.75367782,107750.0,107740.0,2.73234104]
[1748457921656,0.81167096,107750.0,107740.0,2.73234104]
[1748457923664,0.75367782,107750.0,107740.0,2.7323657]
[1748457926754,1.33153926,107750.0,107740.0,2.50927216]
[1748457926955,1.31779226,107750.0,107740.0,1.2016857]
[1748457927157,0.93993082,107750.0,107740.0,1.13070604]
[1748457927467,1.12549872,107750.0,107740.0,2.63058604]
[1748457927658,1.12549872,107750.0,107740.0,2.63070604]
[1748457927859,1.12549872,107750.0,107740.0,2.63045591]
[1748457928058,1.12549872,107750.0,107740.0,2.43816237]
[1748457928265,1.12549872,107750.0,107740.0,2.63045591]
[1748457929166,1.12549872,107750.0,107740.0,2.43816237]
[1748457929371,1.12549872,107750.0,107740.0,2.63045591]
[1748457931568,1.12549872,107750.0,107740.0,2.65045591]
[1748457932152,1.12549872,107750.0,107740.0,2.6069714]
[1748457932357,1.03894089,107750.0,107740.0,2.6069714]
[1748457932557,1.15445397,107750.0,107740.0,2.66611466]
[1748457933158,1.15445397,107750.0,107740.0,2.8584082]
[1748457933159,0.33139299,107750.0,107740.0,2.8584082]
[1748457933361,0.36189217,107750.0,107740.0,1.9675175]
[1748457933563,0.67109909,107750.0,107740.0,2.02550658]
[1748457933962,0.67109909,107750.0,107740.0,3.52550658]
[1748457934158,0.57109909,107750.0,107740.0,3.33321304]
[1748457934372,0.14637909,107750.0,107740.0,3.12221304]
[1748457934570,0.57109909,107750.0,107740.0,3.12121304]
[1748457934773,0.57109909,107750.0,107740.0,3.12321304]
[1748457935271,0.57109909,107750.0,107740.0,3.12521304]
[1748457936569,0.67109909,107750.0,107740.0,3.12518066]
[1748457936768,0.584106,107750.0,107740.0,3.12518066]
[1748457937272,0.484106,107750.0,107740.0,3.12518066]
[1748457937667,0.484066,107750.0,107740.0,3.12518066]
[1748457938175,0.059386,107750.0,107740.0,3.12518066]
[1748457938475,0.484066,107750.0,107740.0,3.12518066]
[1748457939476,0.584066,107750.0,107740.0,3.12518066]
[1748457940675,0.584066,107750.0,107740.0,3.06719158]